[Event "Titled Tuesday Blitz February 07 Early 2023"]
[White "Ciuffoletti, Paolo"]
[Black "Poliakova, Varvara"]
[WhiteFideId "807630"]
[BlackFideId "13518313"]
[WhiteElo "2106"]
[BlackElo "2010"]
[Result "0-1"]
[Round "01"]
[TimeControl "180+2"]
[Date "2023.02.07"]
[WhiteClock "0:00:02"]
[BlackClock "0:01:11"]

1. e4 {[%clk 0:02:43]}  e5 {[%clk 0:02:59]} 2. Nf3 {[%clk 0:02:42]}  Nc6 {[%clk 0:02:59]} 3. Bc4 {[%clk 0:02:42]}  Bc5 {[%clk 0:02:55]} 4. b4 {[%clk 0:02:41]}  Bxb4 {[%clk 0:02:55]} 5. c3 {[%clk 0:02:40]}  Ba5 {[%clk 0:02:55]} 6. d4 {[%clk 0:02:41]}  exd4 {[%clk 0:02:52]} 7. O-O {[%clk 0:02:40]}  d6 {[%clk 0:02:44]} 8. cxd4 {[%clk 0:02:39]}  Nge7 {[%clk 0:02:42]} 9. Ng5 {[%clk 0:02:33]}  O-O {[%clk 0:02:17]} 10. Qh5 {[%clk 0:02:28]}  h6 {[%clk 0:02:12]} 11. Nxf7 {[%clk 0:02:26]}  Rxf7 {[%clk 0:02:07]} 12. Qxf7+ {[%clk 0:02:14]}  Kh7 {[%clk 0:02:05]} 13. Bg5 {[%clk 0:01:58]}  Qg8 {[%clk 0:01:54]} 14. Bxe7 {[%clk 0:01:20]}  Qxf7 {[%clk 0:01:50]} 15. Bxf7 {[%clk 0:01:18]}  Nxe7 {[%clk 0:01:50]} 16. Na3 {[%clk 0:01:15]}  Nc6 {[%clk 0:01:36]} 17. Rfd1 {[%clk 0:01:05]}  Bc3 {[%clk 0:01:34]} 18. Rac1 {[%clk 0:00:26]}  Nxd4 {[%clk 0:01:29]} 19. Kf1 {[%clk 0:00:14]}  Bb2 {[%clk 0:01:29]} 20. Rc4 {[%clk 0:00:13]}  Bxa3 {[%clk 0:01:25]} 21. Rcxd4 {[%clk 0:00:12]}  Bc5 {[%clk 0:01:24]} 22. R4d3 {[%clk 0:00:11]}  b6 {[%clk 0:01:21]} 23. Rg3 {[%clk 0:00:09]}  g5 {[%clk 0:01:18]} 24. h4 {[%clk 0:00:08]}  Ba6+ {[%clk 0:01:18]} 25. Kg1 {[%clk 0:00:07]}  Rf8 {[%clk 0:01:18]} 26. Be6 {[%clk 0:00:05]}  Bxf2+ {[%clk 0:01:16]} 27. Kh2 {[%clk 0:00:05]}  Bxg3+ {[%clk 0:01:13]} 28. Kxg3 {[%clk 0:00:05]}  gxh4+ {[%clk 0:01:13]} 29. Kxh4 {[%clk 0:00:04]}  Rf4+ {[%clk 0:01:13]} 30. Kg3 {[%clk 0:00:02]}  Rf6 {[%clk 0:01:13]} 31. Bf5+ {[%clk 0:00:02]}  Kg7 {[%clk 0:01:13]} 32. Rc1 {[%clk 0:00:02]}  c5 {[%clk 0:01:13]} 33. Rh1 {[%clk 0:00:02]}  d5 {[%clk 0:01:11]} 0-1


[Site "https://www.chess.com"]

[Event "Titled Tuesday Blitz February 07 Early 2023"]
[White "Janaszak, Dawid"]
[Black "Onslow, Alfie"]
[WhiteFideId "1119206"]
[BlackFideId "436976"]
[WhiteElo "2316"]
[BlackElo "2157"]
[Result "1-0"]
[Round "01"]
[TimeControl "180+2"]
[Date "2023.02.07"]
[WhiteClock "0:01:07"]
[BlackClock "0:00:01"]

1. e4 {[%clk 0:02:59]}  c5 {[%clk 0:02:59]} 2. Nc3 {[%clk 0:02:55]}  Nc6 {[%clk 0:02:59]} 3. Bb5 {[%clk 0:02:54]}  g6 {[%clk 0:02:57]} 4. Bxc6 {[%clk 0:02:54]}  dxc6 {[%clk 0:02:58]} 5. d3 {[%clk 0:02:54]}  Bg7 {[%clk 0:02:58]} 6. Be3 {[%clk 0:02:55]}  b6 {[%clk 0:02:53]} 7. Qd2 {[%clk 0:02:54]}  e5 {[%clk 0:02:21]} 8. Nge2 {[%clk 0:02:53]}  Ne7 {[%clk 0:02:19]} 9. Bh6 {[%clk 0:02:52]}  O-O {[%clk 0:02:13]} 10. h4 {[%clk 0:02:48]}  f5 {[%clk 0:02:06]} 11. h5 {[%clk 0:02:48]}  f4 {[%clk 0:02:06]} 12. Bxg7 {[%clk 0:02:47]}  Kxg7 {[%clk 0:02:07]} 13. O-O-O {[%clk 0:02:45]}  Bg4 {[%clk 0:01:57]} 14. hxg6 {[%clk 0:02:42]}  hxg6 {[%clk 0:01:58]} 15. f3 {[%clk 0:02:43]}  Be6 {[%clk 0:01:54]} 16. g3 {[%clk 0:02:41]}  g5 {[%clk 0:01:45]} 17. Rdg1 {[%clk 0:02:41]}  Ng6 {[%clk 0:01:45]} 18. gxf4 {[%clk 0:02:39]}  gxf4 {[%clk 0:01:37]} 19. Rh2 {[%clk 0:02:28]}  Rg8 {[%clk 0:01:20]} 20. Nd1 {[%clk 0:02:24]}  Qf6 {[%clk 0:01:17]} 21. Nf2 {[%clk 0:02:17]}  Kf7 {[%clk 0:01:13]} 22. Ng4 {[%clk 0:02:16]}  Bxg4 {[%clk 0:01:06]} 23. Rxg4 {[%clk 0:02:17]}  Ne7 {[%clk 0:01:02]} 24. Rh7+ {[%clk 0:02:12]}  Ke6 {[%clk 0:01:02]} 25. Rxg8 {[%clk 0:01:32]}  Rxg8 {[%clk 0:01:03]} 26. b4 {[%clk 0:01:32]}  cxb4 {[%clk 0:00:32]} 27. Qxb4 {[%clk 0:01:33]}  Rh8 {[%clk 0:00:32]} 28. Qb3+ {[%clk 0:01:29]}  Kd6 {[%clk 0:00:27]} 29. Qa3+ {[%clk 0:01:29]}  c5 {[%clk 0:00:25]} 30. Rxh8 {[%clk 0:01:27]}  Qxh8 {[%clk 0:00:23]} 31. Qxa7 {[%clk 0:01:28]}  Qh1+ {[%clk 0:00:21]} 32. Kb2 {[%clk 0:01:27]}  Qxf3 {[%clk 0:00:20]} 33. Qxb6+ {[%clk 0:01:27]}  Nc6 {[%clk 0:00:20]} 34. Nc3 {[%clk 0:01:28]}  Qf2 {[%clk 0:00:15]} 35. Nb5+ {[%clk 0:01:28]}  Ke7 {[%clk 0:00:02]} 36. Qxc6 {[%clk 0:01:27]}  f3 {[%clk 0:00:02]} 37. Qd6+ {[%clk 0:01:24]}  Kf7 {[%clk 0:00:02]} 38. Qxe5 {[%clk 0:01:13]}  Qe2 {[%clk 0:00:02]} 39. Nd6+ {[%clk 0:01:12]}  Kg6 {[%clk 0:00:02]} 40. Qf5+ {[%clk 0:01:12]}  Kh6 {[%clk 0:00:02]} 41. Nf7+ {[%clk 0:01:06]}  Kg7 {[%clk 0:00:01]} 42. Ne5 {[%clk 0:01:07]} 1-0


[Site "https://www.chess.com"]

[Event "Titled Tuesday Blitz February 07 Early 2023"]
[White "Torres Dominguez, David"]
[Black "Sharafiev, Azat"]
[WhiteFideId "2220857"]
[BlackFideId "4186214"]
[WhiteElo "1994"]
[BlackElo "2427"]
[Result "1/2-1/2"]
[Round "01"]
[TimeControl "180+2"]
[Date "2023.02.07"]
[WhiteClock "0:02:33"]
[BlackClock "0:02:07"]

1. e4 {[%clk 0:02:58]}  c5 {[%clk 0:02:52]} 2. Nc3 {[%clk 0:02:57]}  d6 {[%clk 0:02:50]} 3. Bb5+ {[%clk 0:02:57]}  Bd7 {[%clk 0:02:49]} 4. Bxd7+ {[%clk 0:02:57]}  Nxd7 {[%clk 0:02:49]} 5. Nf3 {[%clk 0:02:58]}  Ngf6 {[%clk 0:02:45]} 6. d4 {[%clk 0:02:57]}  cxd4 {[%clk 0:02:44]} 7. Nxd4 {[%clk 0:02:58]}  e6 {[%clk 0:02:44]} 8. Be3 {[%clk 0:02:58]}  a6 {[%clk 0:02:43]} 9. f3 {[%clk 0:02:58]}  Be7 {[%clk 0:02:44]} 10. Qd2 {[%clk 0:02:59]}  O-O {[%clk 0:02:44]} 11. O-O {[%clk 0:02:59]}  Qc7 {[%clk 0:02:42]} 12. a3 {[%clk 0:02:58]}  Rac8 {[%clk 0:02:41]} 13. Kh1 {[%clk 0:02:53]}  b5 {[%clk 0:02:40]} 14. Rad1 {[%clk 0:02:51]}  Nc5 {[%clk 0:02:39]} 15. Nde2 {[%clk 0:02:47]}  Rfd8 {[%clk 0:02:36]} 16. Bf4 {[%clk 0:02:42]}  Ne8 {[%clk 0:02:16]} 17. Bg5 {[%clk 0:02:35]}  Nf6 {[%clk 0:02:11]} 18. Bf4 {[%clk 0:02:33]}  Ne8 {[%clk 0:02:07]} 19. Bg5 {[%clk 0:02:33]}  Nf6 {[%clk 0:02:07]} 20. Bf4 {[%clk 0:02:33]} 1/2-1/2


[Site "https://www.chess.com"]

[Event "Titled Tuesday Blitz February 07 Early 2023"]
[White "Karas, Marek"]
[Black "Ardila, Oscar Humberto"]
[WhiteFideId "14928558"]
[BlackFideId "4404742"]
[WhiteElo "2227"]
[BlackElo "1982"]
[Result "1-0"]
[Round "01"]
[TimeControl "180+2"]
[Date "2023.02.07"]
[WhiteClock "0:01:45"]
[BlackClock "0:00:15"]

1. e4 {[%clk 0:02:59]}  e5 {[%clk 0:01:55]} 2. Nf3 {[%clk 0:02:59]}  Nf6 {[%clk 0:01:54]} 3. Nxe5 {[%clk 0:02:54]}  d6 {[%clk 0:01:54]} 4. Nf3 {[%clk 0:02:55]}  Nxe4 {[%clk 0:01:54]} 5. Nc3 {[%clk 0:02:55]}  Nxc3 {[%clk 0:01:54]} 6. dxc3 {[%clk 0:02:56]}  Be7 {[%clk 0:01:54]} 7. Be3 {[%clk 0:02:56]}  O-O {[%clk 0:01:55]} 8. Qd2 {[%clk 0:02:56]}  Nd7 {[%clk 0:01:56]} 9. O-O-O {[%clk 0:02:56]}  Nf6 {[%clk 0:01:57]} 10. Bd3 {[%clk 0:02:55]}  c6 {[%clk 0:01:57]} 11. h3 {[%clk 0:02:51]}  Qa5 {[%clk 0:01:56]} 12. Kb1 {[%clk 0:02:50]}  Be6 {[%clk 0:01:55]} 13. a3 {[%clk 0:02:44]}  b5 {[%clk 0:01:54]} 14. Nd4 {[%clk 0:02:42]}  Rfc8 {[%clk 0:01:42]} 15. g4 {[%clk 0:02:39]}  Nd5 {[%clk 0:01:39]} 16. Bf5 {[%clk 0:02:33]}  Bxf5 {[%clk 0:01:28]} 17. Nxf5 {[%clk 0:02:34]}  Bf8 {[%clk 0:01:28]} 18. Bd4 {[%clk 0:02:21]}  Qd8 {[%clk 0:01:13]} 19. h4 {[%clk 0:02:16]}  Nf6 {[%clk 0:01:01]} 20. Qg5 {[%clk 0:02:10]}  Ne4 {[%clk 0:00:37]} 21. Nh6+ {[%clk 0:02:06]}  Kh8 {[%clk 0:00:36]} 22. Nxf7+ {[%clk 0:02:06]}  Kg8 {[%clk 0:00:37]} 23. Qxd8 {[%clk 0:02:04]}  Rxd8 {[%clk 0:00:36]} 24. Nxd8 {[%clk 0:02:05]}  Rxd8 {[%clk 0:00:35]} 25. f3 {[%clk 0:02:03]}  Nf6 {[%clk 0:00:30]} 26. Bxf6 {[%clk 0:02:01]}  gxf6 {[%clk 0:00:31]} 27. Rhe1 {[%clk 0:02:01]}  Kf7 {[%clk 0:00:30]} 28. Rd3 {[%clk 0:01:59]}  d5 {[%clk 0:00:30]} 29. Rde3 {[%clk 0:01:56]}  Bc5 {[%clk 0:00:29]} 30. Re6 {[%clk 0:01:56]}  Rc8 {[%clk 0:00:29]} 31. f4 {[%clk 0:01:54]}  Rc7 {[%clk 0:00:25]} 32. f5 {[%clk 0:01:55]}  Bf2 {[%clk 0:00:24]} 33. Rh1 {[%clk 0:01:53]}  d4 {[%clk 0:00:20]} 34. cxd4 {[%clk 0:01:52]}  Bxd4 {[%clk 0:00:19]} 35. g5 {[%clk 0:01:53]}  a5 {[%clk 0:00:19]} 36. c3 {[%clk 0:01:50]}  Be5 {[%clk 0:00:18]} 37. h5 {[%clk 0:01:47]}  b4 {[%clk 0:00:18]} 38. axb4 {[%clk 0:01:46]}  axb4 {[%clk 0:00:18]} 39. g6+ {[%clk 0:01:46]}  Kg7 {[%clk 0:00:17]} 40. h6+ {[%clk 0:01:47]}  Kg8 {[%clk 0:00:17]} 41. Rd1 {[%clk 0:01:46]}  hxg6 {[%clk 0:00:16]} 42. fxg6 {[%clk 0:01:46]}  Rc8 {[%clk 0:00:15]} 43. Rd7 {[%clk 0:01:43]}  bxc3 {[%clk 0:00:15]} 44. bxc3 {[%clk 0:01:44]}  Rb8+ {[%clk 0:00:14]} 45. Kc2 {[%clk 0:01:44]}  c5 {[%clk 0:00:15]} 46. Ree7 {[%clk 0:01:44]}  c4 {[%clk 0:00:14]} 47. Rg7+ {[%clk 0:01:44]}  Kf8 {[%clk 0:00:14]} 48. Rdf7+ {[%clk 0:01:44]}  Ke8 {[%clk 0:00:15]} 49. Rg8# {[%clk 0:01:45]} 1-0


[Site "https://www.chess.com"]

[Event "Titled Tuesday Blitz February 07 Early 2023"]
[White "Smith, Garrett L"]
[Black "Lamaze, Simon"]
[WhiteFideId "2024829"]
[BlackFideId "36069264"]
[WhiteElo "2047"]
[BlackElo "2363"]
[Result "0-1"]
[Round "01"]
[TimeControl "180+2"]
[Date "2023.02.07"]
[WhiteClock "0:00:13"]
[BlackClock "0:00:12"]

1. e4 {[%clk 0:03:00]}  c5 {[%clk 0:02:57]} 2. a3 {[%clk 0:03:00]}  e5 {[%clk 0:02:52]} 3. f4 {[%clk 0:02:59]}  exf4 {[%clk 0:02:52]} 4. Bc4 {[%clk 0:02:59]}  Qh4+ {[%clk 0:02:51]} 5. Kf1 {[%clk 0:02:59]}  d6 {[%clk 0:02:49]} 6. Nf3 {[%clk 0:02:54]}  Qh6 {[%clk 0:02:48]} 7. d4 {[%clk 0:02:50]}  Nc6 {[%clk 0:02:43]} 8. c3 {[%clk 0:02:46]}  Bg4 {[%clk 0:02:42]} 9. h3 {[%clk 0:02:40]}  Nf6 {[%clk 0:02:39]} 10. Kg1 {[%clk 0:02:35]}  Bh5 {[%clk 0:02:15]} 11. g4 {[%clk 0:02:25]}  Nxe4 {[%clk 0:02:06]} 12. gxh5 {[%clk 0:02:19]}  O-O-O {[%clk 0:02:02]} 13. Bd5 {[%clk 0:01:57]}  f5 {[%clk 0:01:59]} 14. Qd3 {[%clk 0:01:52]}  Re8 {[%clk 0:01:15]} 15. Nbd2 {[%clk 0:01:45]}  Ng3 {[%clk 0:01:11]} 16. Rh2 {[%clk 0:01:26]}  Qxh5 {[%clk 0:00:57]} 17. Qb5 {[%clk 0:01:03]}  Nd8 {[%clk 0:00:48]} 18. Qa4 {[%clk 0:00:44]}  g5 {[%clk 0:00:35]} 19. Qxa7 {[%clk 0:00:38]}  g4 {[%clk 0:00:28]} 20. hxg4 {[%clk 0:00:37]}  Qxg4 {[%clk 0:00:29]} 21. Rg2 {[%clk 0:00:30]}  Qh3 {[%clk 0:00:28]} 22. Rh2 {[%clk 0:00:24]}  Ne2+ {[%clk 0:00:26]} 23. Kf2 {[%clk 0:00:17]}  Qg3+ {[%clk 0:00:25]} 24. Kf1 {[%clk 0:00:15]}  Ng1 {[%clk 0:00:16]} 25. Rg2 {[%clk 0:00:13]}  Qh3 {[%clk 0:00:14]} 26. Kxg1 {[%clk 0:00:13]}  Bh6 {[%clk 0:00:11]} 27. Qa8+ {[%clk 0:00:13]}  Kc7 {[%clk 0:00:12]} 28. Qa6 {[%clk 0:00:13]}  bxa6 {[%clk 0:00:12]} 0-1


[Site "https://www.chess.com"]

[Event "Titled Tuesday Blitz February 07 Early 2023"]
[White "Alinasab, Mobina"]
[Black "lisjakzlatko1"]
[WhiteFideId "12528897"]
[WhiteElo "2347"]
[BlackElo "2211"]
[Result "1-0"]
[Round "01"]
[TimeControl "180+2"]
[Date "2023.02.07"]
[WhiteClock "0:02:15"]
[BlackClock "0:00:02"]

1. e4 {[%clk 0:02:58]}  d5 {[%clk 0:02:58]} 2. exd5 {[%clk 0:02:57]}  Nf6 {[%clk 0:02:57]} 3. d4 {[%clk 0:02:51]}  e6 {[%clk 0:02:48]} 4. dxe6 {[%clk 0:02:50]}  Bxe6 {[%clk 0:02:47]} 5. Nf3 {[%clk 0:02:51]}  Nc6 {[%clk 0:02:40]} 6. c3 {[%clk 0:02:50]}  Qd7 {[%clk 0:02:28]} 7. Bd3 {[%clk 0:02:50]}  O-O-O {[%clk 0:02:28]} 8. O-O {[%clk 0:02:49]}  h6 {[%clk 0:02:26]} 9. Qe2 {[%clk 0:02:48]}  g5 {[%clk 0:02:24]} 10. Bb5 {[%clk 0:02:48]}  Bd5 {[%clk 0:02:13]} 11. Ne5 {[%clk 0:02:46]}  Qe8 {[%clk 0:01:51]} 12. Nxc6 {[%clk 0:02:43]}  Bxc6 {[%clk 0:01:47]} 13. Qxe8 {[%clk 0:02:42]}  Bxe8 {[%clk 0:01:45]} 14. Bxe8 {[%clk 0:02:41]}  Rxe8 {[%clk 0:01:44]} 15. Be3 {[%clk 0:02:34]}  Ng4 {[%clk 0:01:39]} 16. Re1 {[%clk 0:02:33]}  Bd6 {[%clk 0:01:35]} 17. h3 {[%clk 0:02:32]}  Nxe3 {[%clk 0:01:29]} 18. Rxe3 {[%clk 0:02:33]}  Rxe3 {[%clk 0:01:28]} 19. fxe3 {[%clk 0:02:34]}  Re8 {[%clk 0:01:20]} 20. Kf2 {[%clk 0:02:33]}  h5 {[%clk 0:01:20]} 21. Nd2 {[%clk 0:02:32]}  h4 {[%clk 0:01:20]} 22. Kf3 {[%clk 0:02:29]}  f5 {[%clk 0:01:16]} 23. Re1 {[%clk 0:02:26]}  Kd7 {[%clk 0:01:10]} 24. Re2 {[%clk 0:02:24]}  c5 {[%clk 0:00:52]} 25. dxc5 {[%clk 0:02:16]}  Bxc5 {[%clk 0:00:46]} 26. e4 {[%clk 0:02:16]}  fxe4+ {[%clk 0:00:15]} 27. Nxe4 {[%clk 0:02:16]}  Be7 {[%clk 0:00:09]} 28. Kg4 {[%clk 0:02:16]}  Kc6 {[%clk 0:00:06]} 29. Nxg5 {[%clk 0:02:14]}  Bxg5 {[%clk 0:00:02]} 30. Kxg5 {[%clk 0:02:15]} 1-0


[Site "https://www.chess.com"]

[Event "Titled Tuesday Blitz February 07 Early 2023"]
[White "SicilianPanzer"]
[Black "Hristodoulou, Panagiotis"]
[BlackFideId "4214340"]
[WhiteElo "2245"]
[BlackElo "2372"]
[Result "1-0"]
[Round "01"]
[TimeControl "180+2"]
[Date "2023.02.07"]
[WhiteClock "0:00:16"]
[BlackClock "0:00:02"]

1. c4 {[%clk 0:02:58]}  e6 {[%clk 0:02:02]} 2. Nc3 {[%clk 0:02:57]}  d5 {[%clk 0:02:02]} 3. d4 {[%clk 0:02:56]}  Nf6 {[%clk 0:02:01]} 4. Nf3 {[%clk 0:02:54]}  h6 {[%clk 0:02:00]} 5. g3 {[%clk 0:02:38]}  Bd6 {[%clk 0:01:56]} 6. Bg2 {[%clk 0:02:33]}  O-O {[%clk 0:01:55]} 7. O-O {[%clk 0:02:32]}  Nc6 {[%clk 0:01:54]} 8. b3 {[%clk 0:02:05]}  dxc4 {[%clk 0:01:52]} 9. bxc4 {[%clk 0:02:03]}  e5 {[%clk 0:01:52]} 10. d5 {[%clk 0:02:02]}  Na5 {[%clk 0:01:51]} 11. Qa4 {[%clk 0:01:52]}  b6 {[%clk 0:01:50]} 12. c5 {[%clk 0:01:36]}  Bxc5 {[%clk 0:01:47]} 13. Nxe5 {[%clk 0:01:34]}  Bd6 {[%clk 0:01:01]} 14. Nd3 {[%clk 0:01:31]}  Re8 {[%clk 0:00:47]} 15. e4 {[%clk 0:01:29]}  Ba6 {[%clk 0:00:46]} 16. Qc2 {[%clk 0:01:10]}  Nb7 {[%clk 0:00:31]} 17. Re1 {[%clk 0:01:03]}  Bxd3 {[%clk 0:00:28]} 18. Qxd3 {[%clk 0:01:02]}  Nc5 {[%clk 0:00:29]} 19. Qc2 {[%clk 0:00:57]}  Qd7 {[%clk 0:00:20]} 20. f4 {[%clk 0:00:51]}  Nb7 {[%clk 0:00:04]} 21. Be3 {[%clk 0:00:30]}  Bc5 {[%clk 0:00:03]} 22. Rad1 {[%clk 0:00:26]}  Bxe3+ {[%clk 0:00:01]} 23. Rxe3 {[%clk 0:00:26]}  Ng4 {[%clk 0:00:02]} 24. Re2 {[%clk 0:00:19]}  Rad8 {[%clk 0:00:03]} 25. e5 {[%clk 0:00:19]}  Qe7 {[%clk 0:00:02]} 26. Ne4 {[%clk 0:00:17]}  h5 {[%clk 0:00:02]} 27. h3 {[%clk 0:00:17]}  Nh6 {[%clk 0:00:02]} 28. Ng5 {[%clk 0:00:17]}  Nc5 {[%clk 0:00:02]} 29. Qh7+ {[%clk 0:00:16]}  Kf8 {[%clk 0:00:02]} 30. Qh8+ {[%clk 0:00:16]} 1-0


[Site "https://www.chess.com"]

[Event "Titled Tuesday Blitz February 07 Early 2023"]
[White "Olenik Campa, Rudi"]
[Black "Hertlein, Irena"]
[WhiteFideId "14633264"]
[BlackFideId "21817618"]
[WhiteElo "2356"]
[BlackElo "1994"]
[Result "1-0"]
[Round "01"]
[TimeControl "180+2"]
[Date "2023.02.07"]
[WhiteClock "0:02:00"]
[BlackClock "0:00:28"]

1. e4 {[%clk 0:03:00]}  c5 {[%clk 0:02:51]} 2. Nf3 {[%clk 0:02:58]}  e6 {[%clk 0:02:50]} 3. c4 {[%clk 0:02:58]}  Nc6 {[%clk 0:02:49]} 4. Be2 {[%clk 0:02:57]}  Nd4 {[%clk 0:02:48]} 5. Nxd4 {[%clk 0:02:57]}  cxd4 {[%clk 0:02:48]} 6. d3 {[%clk 0:02:58]}  Bb4+ {[%clk 0:02:46]} 7. Bd2 {[%clk 0:02:57]}  Qa5 {[%clk 0:02:31]} 8. O-O {[%clk 0:02:55]}  Bxd2 {[%clk 0:02:30]} 9. Nxd2 {[%clk 0:02:56]}  Ne7 {[%clk 0:02:23]} 10. a3 {[%clk 0:02:56]}  d6 {[%clk 0:02:12]} 11. b4 {[%clk 0:02:54]}  Qd8 {[%clk 0:02:09]} 12. f4 {[%clk 0:02:53]}  O-O {[%clk 0:02:06]} 13. Nf3 {[%clk 0:02:50]}  e5 {[%clk 0:02:06]} 14. fxe5 {[%clk 0:02:48]}  dxe5 {[%clk 0:02:04]} 15. Nxe5 {[%clk 0:02:49]}  a5 {[%clk 0:02:00]} 16. Nf3 {[%clk 0:02:44]}  axb4 {[%clk 0:01:56]} 17. axb4 {[%clk 0:02:43]}  Rxa1 {[%clk 0:01:56]} 18. Qxa1 {[%clk 0:02:42]}  Bg4 {[%clk 0:01:56]} 19. Qxd4 {[%clk 0:02:37]}  Bxf3 {[%clk 0:01:56]} 20. Qxd8 {[%clk 0:02:36]}  Rxd8 {[%clk 0:01:56]} 21. gxf3 {[%clk 0:02:35]}  Nc6 {[%clk 0:01:56]} 22. b5 {[%clk 0:02:33]}  Nd4 {[%clk 0:01:50]} 23. Kf2 {[%clk 0:02:34]}  Ra8 {[%clk 0:01:45]} 24. Ke3 {[%clk 0:02:33]}  Nxe2 {[%clk 0:01:43]} 25. Kxe2 {[%clk 0:02:33]}  Ra2+ {[%clk 0:01:44]} 26. Ke3 {[%clk 0:02:33]}  Rxh2 {[%clk 0:01:43]} 27. Ra1 {[%clk 0:02:33]}  h5 {[%clk 0:01:38]} 28. c5 {[%clk 0:02:31]}  Rc2 {[%clk 0:01:29]} 29. d4 {[%clk 0:02:31]}  h4 {[%clk 0:01:25]} 30. Kf4 {[%clk 0:02:29]}  h3 {[%clk 0:01:10]} 31. Kg3 {[%clk 0:02:25]}  h2 {[%clk 0:01:10]} 32. Rh1 {[%clk 0:02:25]}  Rc4 {[%clk 0:01:06]} 33. Rxh2 {[%clk 0:02:22]}  Rxd4 {[%clk 0:01:07]} 34. Rc2 {[%clk 0:02:20]}  Rd7 {[%clk 0:00:42]} 35. c6 {[%clk 0:02:19]}  bxc6 {[%clk 0:00:43]} 36. bxc6 {[%clk 0:02:20]}  Rc7 {[%clk 0:00:43]} 37. Kf4 {[%clk 0:02:20]}  Kf8 {[%clk 0:00:43]} 38. Ke5 {[%clk 0:02:20]}  Ke7 {[%clk 0:00:43]} 39. f4 {[%clk 0:02:19]}  f6+ {[%clk 0:00:40]} 40. Kf5 {[%clk 0:02:16]}  Kf7 {[%clk 0:00:39]} 41. e5 {[%clk 0:02:11]}  fxe5 {[%clk 0:00:33]} 42. Kxe5 {[%clk 0:02:06]}  g6 {[%clk 0:00:32]} 43. Rc1 {[%clk 0:02:03]}  Ke7 {[%clk 0:00:32]} 44. Rc2 {[%clk 0:02:00]}  Kf7 {[%clk 0:00:32]} 45. Kd6 {[%clk 0:01:59]}  Rc8 {[%clk 0:00:28]} 46. Kd7 {[%clk 0:02:00]} 1-0


[Site "https://www.chess.com"]

[Event "Titled Tuesday Blitz February 07 Early 2023"]
[White "Sourath Biswas"]
[Black "Gharamian, Tigran"]
[WhiteFideId "35091484"]
[BlackFideId "13301527"]
[WhiteElo "2281"]
[BlackElo "2601"]
[Result "1-0"]
[Round "01"]
[TimeControl "180+2"]
[Date "2023.02.07"]
[WhiteClock "0:01:15"]
[BlackClock "0:00:06"]

1. d4 {[%clk 0:02:59]}  Nf6 {[%clk 0:02:59]} 2. Bf4 {[%clk 0:02:59]}  d5 {[%clk 0:02:58]} 3. e3 {[%clk 0:02:56]}  c5 {[%clk 0:02:58]} 4. Nf3 {[%clk 0:02:57]}  cxd4 {[%clk 0:02:56]} 5. exd4 {[%clk 0:02:57]}  Nc6 {[%clk 0:02:57]} 6. c3 {[%clk 0:02:57]}  Bg4 {[%clk 0:02:58]} 7. Qb3 {[%clk 0:02:38]}  Na5 {[%clk 0:02:19]} 8. Qa4+ {[%clk 0:02:11]}  Bd7 {[%clk 0:02:19]} 9. Qc2 {[%clk 0:02:11]}  Qb6 {[%clk 0:02:17]} 10. Bd3 {[%clk 0:02:11]}  e6 {[%clk 0:02:13]} 11. Nbd2 {[%clk 0:02:11]}  Bb5 {[%clk 0:02:11]} 12. O-O {[%clk 0:02:06]}  Bxd3 {[%clk 0:02:04]} 13. Qxd3 {[%clk 0:02:07]}  Be7 {[%clk 0:02:02]} 14. a4 {[%clk 0:02:06]}  Rc8 {[%clk 0:01:57]} 15. Ne5 {[%clk 0:02:04]}  Nb3 {[%clk 0:01:40]} 16. Nxb3 {[%clk 0:01:52]}  Qxb3 {[%clk 0:01:40]} 17. Qb5+ {[%clk 0:01:52]}  Qxb5 {[%clk 0:01:40]} 18. axb5 {[%clk 0:01:53]}  Ra8 {[%clk 0:01:12]} 19. Ra4 {[%clk 0:01:48]}  Bd8 {[%clk 0:00:51]} 20. Nd3 {[%clk 0:01:34]}  O-O {[%clk 0:00:47]} 21. Nc5 {[%clk 0:01:30]}  b6 {[%clk 0:00:42]} 22. Nd3 {[%clk 0:01:30]}  Re8 {[%clk 0:00:38]} 23. Rfa1 {[%clk 0:01:30]}  Re7 {[%clk 0:00:39]} 24. Nb4 {[%clk 0:01:31]}  Rb7 {[%clk 0:00:32]} 25. Nc6 {[%clk 0:01:30]}  Bc7 {[%clk 0:00:23]} 26. Bxc7 {[%clk 0:01:24]}  Rxc7 {[%clk 0:00:23]} 27. Ra6 {[%clk 0:01:24]}  Rac8 {[%clk 0:00:14]} 28. Nxa7 {[%clk 0:01:24]}  Re8 {[%clk 0:00:13]} 29. Nc6 {[%clk 0:01:24]}  Nd7 {[%clk 0:00:12]} 30. Ra7 {[%clk 0:01:23]}  Rxa7 {[%clk 0:00:12]} 31. Rxa7 {[%clk 0:01:24]}  Nf8 {[%clk 0:00:10]} 32. Rb7 {[%clk 0:01:24]}  e5 {[%clk 0:00:11]} 33. Nxe5 {[%clk 0:01:24]}  f6 {[%clk 0:00:11]} 34. Nf3 {[%clk 0:01:23]}  Re2 {[%clk 0:00:11]} 35. Rxb6 {[%clk 0:01:20]}  Rxb2 {[%clk 0:00:11]} 36. h4 {[%clk 0:01:20]}  Kf7 {[%clk 0:00:12]} 37. h5 {[%clk 0:01:14]}  Nd7 {[%clk 0:00:11]} 38. Rd6 {[%clk 0:01:13]}  Ke7 {[%clk 0:00:11]} 39. Rxd5 {[%clk 0:01:14]}  Rb3 {[%clk 0:00:11]} 40. c4 {[%clk 0:01:14]}  Nb6 {[%clk 0:00:11]} 41. Rc5 {[%clk 0:01:14]}  Rb4 {[%clk 0:00:09]} 42. Nd2 {[%clk 0:01:14]}  Nd7 {[%clk 0:00:08]} 43. Rc7 {[%clk 0:01:14]}  Kd6 {[%clk 0:00:09]} 44. Rc6+ {[%clk 0:01:15]}  Ke7 {[%clk 0:00:09]} 45. Ne4 {[%clk 0:01:15]}  Rb2 {[%clk 0:00:06]} 46. Nc5 {[%clk 0:01:14]}  Nxc5 {[%clk 0:00:05]} 47. dxc5 {[%clk 0:01:12]}  Kd7 {[%clk 0:00:04]} 48. Rd6+ {[%clk 0:01:13]}  Kc7 {[%clk 0:00:05]} 49. b6+ {[%clk 0:01:14]}  Kb7 {[%clk 0:00:05]} 50. Rd7+ {[%clk 0:01:14]}  Kc6 {[%clk 0:00:06]} 51. Rc7# {[%clk 0:01:15]} 1-0


[Site "https://www.chess.com"]